[Event "94th Tradewise Hastings Congress"]
[Site "Hastings"]
[Date "2018.12.30"]
[Round "3"]
[White "Rolvag, Mikael"]
[Black "Pitschka, Claus"]
[Result "1-0"]
[ECO "D11"]
[WhiteElo "2107"]
[BlackElo "2241"]
[Annotator "ChessBase"]
[PlyCount "79"]
[EventDate "2018.12.28"]
[EventType "swiss"]
[EventCountry "ENG"]
[SourceTitle "playchess.com"]
[Source "ChessBase"]
[SourceQuality "1"]
[TimeControl "40/6000+30:3000+30"]

1. c4 {[%emt 0:00:00]} c6 {[%emt 0:00:00]} 2. d4 {[%emt 0:00:00]} d5 {[%emt 0:00:00]} 3. Nf3 {[%emt 0:00:00]} Nf6 {[%emt 0:00:14]} 4. e3 {[%emt 0:00:00]} Bg4 {[%emt 0:00:11]} 5. cxd5 {[%emt 0:03:53]} cxd5 {[%emt 0:01:12]} 6. Qb3 {[%emt 0:13:10]} Qc7 {[%emt 0:04:16]} 7. Nc3 {[%emt 0:07:53]} Bxf3 {[%emt 0:03:28]} 8. gxf3 {[%emt 0:00:00]} e6 {[%emt 0:00:06]} 9. Bd2 {[%emt 0:00:00]} Nc6 {[%emt 0:00:55]} 10. Bb5 {[%emt 0:04:15]} Be7 {[%emt 0:07:06]} 11. Rc1 {[%emt 0:02:55]} O-O {[%emt 0:03:41]} 12. Na4 {[%emt 0:07:04]} Rfc8 {[%emt 0:03:49]} 13. Ke2 {[%emt 0:00:00]} Nd7 {[%emt 0:13:41]} 14. f4 {[%emt 0:12:25]} a6 {[%emt 0:04:02]} 15. Bxc6 {[%emt 0:00:15]} bxc6 {[%emt 0:00:16]} 16. Rc2 {[%emt 0:00:41]} Rab8 {[%emt 0:10:51]} 17. Qd3 {[%emt 0:01:08]} Qb7 {[%emt 0:04:42]} 18. Rhc1 {[%emt 0:00:30]} f6 {[%emt 0:00:30]} 19. Bc3 {[%emt 0:09:01]} c5 {[%emt 0:10:36]} 20. dxc5 {[%emt 0:00:36]} Nxc5 {[%emt 0:08:12]} 21. Nxc5 {[%emt 0:01:04]} Rxc5 {[%emt 0:00:09]} 22. Bd4 {[%emt 0:02:09]} Rcc8 {[%emt 0:04:50]} 23. Rxc8+ {[%emt 0:08:34]} Rxc8 {[%emt 0:00:06]} 24. Rxc8+ {[%emt 0:00:14]} Qxc8 {[%emt 0:00:03]} 25. Bc3 {[%emt 0:00:14]} Qc6 {[%emt 0:01:24]} 26. b3 {[%emt 0:05:48]} Bd6 {[%emt 0:03:54]} 27. h3 {[%emt 0:02:34]} Kf7 {[%emt 0:06:35]} 28. Kd2 {[%emt 0:00:59]} g6 {[%emt 0:00:16]} 29. a4 {[%emt 0:00:47]} e5 {[%emt 0:00:53]} 30. fxe5 {[%emt 0:04:06]} fxe5 {[%emt 0:00:07]} 31. b4 {[%emt 0:01:45]} Ke6 {[%emt 0:03:52]} 32. b5 {[%emt 0:06:58]} axb5 {[%emt 0:00:42]} 33. Qxb5 {[%emt 0:00:34]} Qxb5 {[%emt 0:01:32]} 34. axb5 {[%emt 0:00:06]} Bc5 {[%emt 0:01:07]} 35. Ba5 {[%emt 0:01:01]} Kd7 {[%emt 0:04:14]} 36. f3 {[%emt 0:01:11]} g5 {[%emt 0:01:10]} 37. Kd3 {[%emt 0:00:37]} h5 {[%emt 0:01:29]} 38. e4 {[%emt 0:00:30]} d4 {[%emt 0:03:16]} 39. Kc4 {[%emt 0:00:26]} Be7 {[%emt 0:03:42]} 40. Kd5 {[%emt 0:02:59]} 1-0

[Event "94th Tradewise Hastings Congress"]
[Site "Hastings"]
[Date "2018.12.30"]
[Round "3"]
[White "White, Stuart A"]
[Black "Villiers, Thomas"]
[Result "1/2-1/2"]
[ECO "E44"]
[WhiteElo "2096"]
[BlackElo "2205"]
[Annotator "NA"]
[PlyCount "75"]
[EventDate "2018.12.28"]
[EventType "swiss"]
[EventCountry "ENG"]
[SourceTitle "playchess.com"]
[Source "ChessBase"]
[SourceQuality "1"]
[TimeControl "40/6000+30:3000+30"]

1. d4 {[%emt 0:00:00]} Nf6 {[%emt 0:01:44]} 2. c4 {[%emt 0:00:00]} e6 {[%emt 0:00:04]} 3. Nc3 {[%emt 0:00:00]} Bb4 {[%emt 0:00:47]} 4. e3 {[%emt 0:00:00]} b6 {[%emt 0:00:18]} 5. Nge2 {[%emt 0:00:10]} Bb7 {[%emt 0:00:25]} 6. a3 {[%emt 0:00:55]} Be7 {[%emt 0:00:05]} 7. d5 {[%emt 0:01:29]} O-O {[%emt 0:00:13]} 8. Ng3 {[%emt 0:03:25]} Re8 {[%emt 0:01:31]} 9. Be2 {[%emt 0:01:11]} d6 {[%emt 0:07:03]} 10. e4 {[%emt 0:01:46]} Nbd7 {[%emt 0:01:06]} 11. O-O {[%emt 0:03:04]} c6 {[%emt 0:02:04]} 12. Bf4 {[%emt 0:16:31]} Nf8 {[%emt 0:21:32]} 13. dxc6 {[%emt 0:12:30]} Bxc6 {[%emt 0:00:49]} 14. Qd2 {[%emt 0:00:34]} Ng6 {[%emt 0:07:37]} 15. Be3 {[%emt 0:00:45]} Qd7 {[%emt 0:13:40]} 16. Rfd1 {[%emt 0:15:20]} Qb7 {[%emt 0:01:39]} 17. f3 {[%emt 0:00:46]} Rad8 {[%emt 0:00:39]} 18. Bd4 {[%emt 0:03:21]} Qa8 {[%emt 0:12:03]} 19. b4 {[%emt 0:03:16]} d5 {[%emt 0:00:19]} 20. cxd5 {[%emt 0:03:12]} exd5 {[%emt 0:00:55]} 21. e5 {[%emt 0:01:07]} Nd7 {[%emt 0:01:52]} 22. f4 {[%emt 0:01:07]} Nc5 {[%emt 0:02:27]} 23. Qe3 {[%emt 0:17:16]} Nb3 {[%emt 0:01:42]} 24. Rab1 {[%emt 0:00:06]} Nxd4 {[%emt 0:00:37]} 25. Qxd4 {[%emt 0:00:31]} Nf8 26. f5 {[%emt 0:08:47]} Nd7 {[%emt 0:02:41]} 27. e6 {[%emt 0:02:35]} Bf6 {[%emt 0:01:05]} 28. exf7+ {[%emt 0:02:12]} Kxf7 {[%emt 0:00:05]} 29. Qd2 {[%emt 0:00:54]} d4 {[%emt 0:01:04]} 30. Nb5 {[%emt 0:01:55]} Bxb5 {[%emt 0:09:09]} 31. Bxb5 {[%emt 0:00:05]} Qd5 {[%emt 0:00:57]} 32. Qd3 {[%emt 0:01:49]} Kf8 {[%emt 0:02:15]} 33. Bc4 {[%emt 0:01:23]} Qa8 {[%emt 0:00:01]} 34. Ba2 {[%emt 0:00:57]} Re3 {[%emt 0:01:26]} 35. Qc4 {[%emt 0:00:42]} Ne5 {[%emt 0:00:35]} 36. Qg8+ {[%emt 0:02:54]} Ke7 {[%emt 0:00:02]} 37. Qe6+ {[%emt 0:00:07]} Kf8 {[%emt 0:00:03]} 38. Qg8+ {[%emt 0:00:03]} 1/2-1/2

[Event "94th Tradewise Hastings Congress"]
[Site "Hastings"]
[Date "2018.12.30"]
[Round "3"]
[White "Sugden, John N"]
[Black "Payne, Matthew J"]
[Result "1/2-1/2"]
[ECO "C02"]
[WhiteElo "2072"]
[BlackElo "2182"]
[Annotator "NA"]
[PlyCount "62"]
[EventDate "2018.12.28"]
[EventType "swiss"]
[EventCountry "ENG"]
[SourceTitle "playchess.com"]
[Source "ChessBase"]
[SourceQuality "1"]
[TimeControl "40/6000+30:3000+30"]

1. e4 e6 2. d4 d5 3. e5 c5 4. c3 Nc6 5. Nf3 Nh6 6. Bd3 f6 7. Bxh6 gxh6 8. O-O cxd4 9. cxd4 Bg7 10. Nc3 O-O 11. Qe2 Bd7 12. Rad1 Be8 13. Bb1 fxe5 14. Nxe5 Nxe5 15. dxe5 Qg5 16. Rfe1 Bh5 17. Qd3 Bxd1 18. Qxh7+ Kf7 19. Nxd1 Rh8 20. Qd3 Bxe5 21. Qe2 Rhg8 22. g3 Rac8 23. Nc3 Rgd8 24. Qxe5 Qxe5 25. Rxe5 d4 26. Ne2 d3 27. Nc3 d2 28. Bc2 Rxc3 29. bxc3 d1=Q+ 30. Bxd1 Rxd1+ 31. Kg2 b6 1/2-1/2

[Event "94th Tradewise Hastings Congress"]
[Site "Hastings"]
[Date "2018.12.30"]
[Round "3"]
[White "Barton, R Alan"]
[Black "Faulks, Nick"]
[Result "1-0"]
[ECO "A48"]
[WhiteElo "2037"]
[BlackElo "1917"]
[Annotator "NA"]
[PlyCount "69"]
[EventDate "2018.12.28"]
[EventType "swiss"]
[EventCountry "ENG"]
[SourceTitle "playchess.com"]
[Source "ChessBase"]
[SourceQuality "1"]
[TimeControl "40/6000+30:3000+30"]

1. Nf3 {[%emt 0:00:00]} Nf6 {[%emt 0:00:00]} 2. d4 {[%emt 0:00:01]} c5 {[%emt 0:00:21]} 3. e3 {[%emt 0:00:45]} g6 {[%emt 0:02:18]} 4. Be2 {[%emt 0:02:51]} Bg7 {[%emt 0:00:35]} 5. O-O {[%emt 0:00:06]} O-O {[%emt 0:00:57]} 6. c3 {[%emt 0:02:58]} d6 {[%emt 0:05:37]} 7. Nbd2 {[%emt 0:01:23]} Nc6 {[%emt 0:05:52]} 8. Re1 {[%emt 0:05:19]} e5 {[%emt 0:08:01]} 9. dxe5 {[%emt 0:00:28]} dxe5 {[%emt 0:01:15]} 10. e4 {[%emt 0:00:06]} Qc7 {[%emt 0:04:34]} 11. Qc2 {[%emt 0:01:34]} b6 {[%emt 0:04:31]} 12. a4 {[%emt 0:02:41]} Bb7 {[%emt 0:01:56]} 13. Nc4 {[%emt 0:09:32]} a6 {[%emt 0:07:59]} 14. Bg5 {[%emt 0:03:18]} h6 {[%emt 0:05:31]} 15. Bxf6 {[%emt 0:00:56]} Bxf6 {[%emt 0:00:15]} 16. Rad1 {[%emt 0:13:58]} Rad8 {[%emt 0:04:33]} 17. Nfd2 {[%emt 0:03:22]} Bg7 {[%emt 0:06:51]} 18. Qb3 {[%emt 0:04:49]} Rb8 {[%emt 0:02:10]} 19. Qxb6 {[%emt 0:04:59]} Qe7 20. Qb3 {[%emt 0:00:31]} Bc8 {[%emt 0:03:08]} 21. Qc2 {[%emt 0:00:28]} f5 {[%emt 0:00:27]} 22. Ne3 {[%emt 0:07:40]} f4 {[%emt 0:02:52]} 23. Nd5 {[%emt 0:03:12]} Qf7 {[%emt 0:00:33]} 24. Nc4 {[%emt 0:03:51]} Rd8 {[%emt 0:03:29]} 25. a5 {[%emt 0:05:59]} g5 {[%emt 0:02:51]} 26. f3 {[%emt 0:02:49]} Be6 {[%emt 0:11:05]} 27. Qa4 {[%emt 0:06:31]} Na7 {[%emt 0:10:24]} 28. Ncb6 {[%emt 0:02:57]} Nb5 {[%emt 0:02:22]} 29. Bxb5 {[%emt 0:03:12]} axb5 {[%emt 0:00:07]} 30. Qxb5 {[%emt 0:00:07]} g4 {[%emt 0:04:14]} 31. Qe2 {[%emt 0:00:42]} gxf3 {[%emt 0:02:49]} 32. gxf3 {[%emt 0:00:39]} Qa7 {[%emt 0:01:30]} 33. b4 {[%emt 0:02:37]} cxb4 {[%emt 0:00:20]} 34. cxb4 {[%emt 0:00:04]} Bf8 {[%emt 0:02:13]} 35. Kh1 {[%emt 0:01:40]} 1-0

[Event "94th Tradewise Hastings Congress"]
[Site "Hastings"]
[Date "2018.12.30"]
[Round "3"]
[White "Midhun, P U"]
[Black "Ratnesan, Ranesh"]
[Result "1-0"]
[ECO "D11"]
[WhiteElo "2010"]
[BlackElo "2055"]
[Annotator "NA"]
[PlyCount "105"]
[EventDate "2018.12.28"]
[EventType "swiss"]
[EventCountry "ENG"]
[SourceTitle "playchess.com"]
[Source "ChessBase"]
[SourceQuality "1"]
[TimeControl "40/6000+30:3000+30"]

1. Nf3 {[%emt 0:00:00]} d5 {[%emt 0:00:00]} 2. d4 {[%emt 0:00:00]} Nf6 {[%emt 0:00:21]} 3. g3 {[%emt 0:00:00]} Bf5 {[%emt 0:01:59]} 4. Bg2 {[%emt 0:00:02]} e6 {[%emt 0:00:37]} 5. O-O {[%emt 0:00:06]} Bd6 {[%emt 0:03:13]} 6. c4 {[%emt 0:00:15]} c6 {[%emt 0:01:10]} 7. Nc3 {[%emt 0:05:14]} O-O {[%emt 0:01:35]} 8. Nd2 {[%emt 0:07:42]} Nbd7 {[%emt 0:06:23]} 9. e4 {[%emt 0:02:19]} dxe4 {[%emt 0:01:09]} 10. Ndxe4 {[%emt 0:00:10]} Nxe4 {[%emt 0:01:12]} 11. Nxe4 {[%emt 0:00:08]} Bxe4 {[%emt 0:13:38]} 12. Bxe4 {[%emt 0:00:03]} e5 {[%emt 0:02:19]} 13. d5 {[%emt 0:13:26]} c5 {[%emt 0:09:19]} 14. Qc2 {[%emt 0:16:17]} g6 {[%emt 0:06:05]} 15. b3 {[%emt 0:01:23]} f5 {[%emt 0:04:50]} 16. Bg2 {[%emt 0:00:03]} e4 {[%emt 0:03:47]} 17. f3 {[%emt 0:09:21]} Be5 {[%emt 0:07:58]} 18. Bb2 {[%emt 0:00:37]} exf3 {[%emt 0:01:21]} 19. Bxf3 {[%emt 0:05:25]} Qf6 {[%emt 0:00:56]} 20. Bxe5 {[%emt 0:01:18]} Nxe5 {[%emt 0:00:17]} 21. Rae1 {[%emt 0:03:01]} Rae8 {[%emt 0:02:00]} 22. Qc3 {[%emt 0:02:10]} Kf7 {[%emt 0:09:26]} 23. Kg2 {[%emt 0:19:38]} Re7 {[%emt 0:06:28]} 24. g4 {[%emt 0:07:21]} Nxg4 {[%emt 0:08:26]} 25. Rxe7+ {[%emt 0:00:15]} Kxe7 {[%emt 0:00:31]} 26. Re1+ {[%emt 0:00:59]} Kd7 {[%emt 0:01:37]} 27. Qa5 {[%emt 0:00:47]} Qd6 {[%emt 0:11:10]} 28. Bxg4 {[%emt 0:01:34]} fxg4 {[%emt 0:00:02]} 29. Qxa7 {[%emt 0:03:34]} Qc7 {[%emt 0:03:38]} 30. Qa4+ {[%emt 0:01:14]} Kd8 {[%emt 0:00:29]} 31. Qa8+ {[%emt 0:03:11]} Qc8 {[%emt 0:00:16]} 32. Qa5+ {[%emt 0:00:56]} Kd7 {[%emt 0:01:13]} 33. Qb5+ {[%emt 0:00:50]} Kd8 {[%emt 0:00:57]} 34. Qb6+ {[%emt 0:00:56]} Qc7 {[%emt 0:01:33]} 35. Qxc7+ {[%emt 0:00:10]} Kxc7 {[%emt 0:00:03]} 36. Re7+ {[%emt 0:00:06]} Kd6 {[%emt 0:01:24]} 37. Rxh7 {[%emt 0:00:52]} b5 {[%emt 0:00:37]} 38. cxb5 {[%emt 0:00:44]} Rb8 {[%emt 0:00:19]} 39. a4 {[%emt 0:00:26]} Kxd5 {[%emt 0:00:06]} 40. Rd7+ {[%emt 0:00:32]} Ke6 {[%emt 0:00:27]} 41. Rc7 {[%emt 0:50:17]} Kd5 {[%emt 0:50:23]} 42. Kg3 {[%emt 0:01:14]} Rh8 {[%emt 0:00:00]} 43. Kxg4 {[%emt 0:00:00]} Rxh2 {[%emt 0:00:00]} 44. a5 {[%emt 0:00:00]} Rg2+ {[%emt 0:00:00]} 45. Kf4 {[%emt 0:00:00]} g5+ {[%emt 0:00:00]} 46. Kf5 {[%emt 0:00:00]} Rf2+ {[%emt 0:00:00]} 47. Kxg5 {[%emt 0:00:00]} Rg2+ {[%emt 0:00:00]} 48. Kf6 {[%emt 0:00:00]} Rb2 {[%emt 0:00:00]} 49. Rd7+ {[%emt 0:00:00]} Ke4 {[%emt 0:00:00]} 50. a6 {[%emt 0:00:00]} Rxb3 {[%emt 0:00:00]} 51. a7 {[%emt 0:00:00]} Ra3 {[%emt 0:00:00]} 52. b6 {[%emt 0:00:00]} c4 {[%emt 0:00:00]} 53. b7 {[%emt 0:00:00]} 1-0

[Event "94th Tradewise Hastings Congress"]
[Site "Hastings"]
[Date "2018.12.30"]
[Round "3"]
[White "Song, Jinwoo"]
[Black "Miller, Dominic"]
[Result "0-1"]
[ECO "C02"]
[WhiteElo "1907"]
[BlackElo "2061"]
[Annotator "NA"]
[PlyCount "63"]
[EventDate "2018.12.28"]
[EventType "swiss"]
[EventCountry "ENG"]
[SourceTitle "playchess.com"]
[Source "ChessBase"]
[SourceQuality "1"]
[TimeControl "40/6000+30:3000+30"]

1. e4 {[%emt 0:00:00]} e6 {[%emt 0:00:00]} 2. d4 {[%emt 0:00:04]} d5 {[%emt 0:00:00]} 3. e5 {[%emt 0:00:12]} c5 {[%emt 0:01:13]} 4. c3 {[%emt 0:00:05]} Nc6 {[%emt 0:00:23]} 5. Nf3 {[%emt 0:00:09]} Qb6 {[%emt 0:00:34]} 6. Be2 {[%emt 0:01:43]} cxd4 {[%emt 0:00:53]} 7. cxd4 {[%emt 0:00:06]} Nh6 {[%emt 0:00:05]} 8. b3 {[%emt 0:00:21]} Bb4+ {[%emt 0:01:35]} 9. Kf1 {[%emt 0:00:11]} Nf5 {[%emt 0:00:18]} 10. Bb2 {[%emt 0:00:12]} Bd7 {[%emt 0:08:38]} 11. g4 {[%emt 0:03:32]} Nh6 {[%emt 0:00:25]} 12. h3 {[%emt 0:00:10]} f6 {[%emt 0:09:58]} 13. exf6 {[%emt 0:18:07]} gxf6 {[%emt 0:00:05]} 14. Nc3 {[%emt 0:01:23]} Ne7 {[%emt 0:03:34]} 15. Bd3 {[%emt 0:12:56]} Nf7 {[%emt 0:01:27]} 16. Ne2 {[%emt 0:06:37]} Bd6 {[%emt 0:01:27]} 17. Qd2 {[%emt 0:09:00]} O-O-O {[%emt 0:02:27]} 18. Bc3 {[%emt 0:05:32]} Nc6 {[%emt 0:00:52]} 19. b4 {[%emt 0:03:35]} Bxb4 {[%emt 0:07:33]} 20. Rb1 {[%emt 0:02:46]} Bxc3 {[%emt 0:00:06]} 21. Nxc3 {[%emt 0:00:58]} Qa5 {[%emt 0:00:07]} 22. Kg2 {[%emt 0:06:46]} h5 {[%emt 0:05:31]} 23. g5 {[%emt 0:14:16]} fxg5 {[%emt 0:07:44]} 24. Rhc1 {[%emt 0:05:17]} Kb8 {[%emt 0:00:25]} 25. Qb2 {[%emt 0:01:34]} b6 {[%emt 0:05:59]} 26. Nb5 {[%emt 0:04:48]} g4 {[%emt 0:15:44]} 27. Ne5 {[%emt 0:04:21]} gxh3+ {[%emt 0:03:05]} 28. Kh2 {[%emt 0:01:16]} Ncxe5 {[%emt 0:01:44]} 29. dxe5 {[%emt 0:01:01]} Bxb5 {[%emt 0:00:52]} 30. Bxb5 {[%emt 0:00:21]} d4 {[%emt 0:01:41]} 31. Qe2 {[%emt 0:01:15]} Qa3 {[%emt 0:16:11]} 32. Rb3 {[%emt 0:02:12]} 0-1

[Event "94th Tradewise Hastings Congress"]
[Site "Hastings"]
[Date "2018.12.30"]
[Round "3"]
[White "Chapman, Matt"]
[Black "Norinkeviciute, Rasa"]
[Result "1-0"]
[ECO "B90"]
[WhiteElo "1902"]
[BlackElo "2028"]
[Annotator "NA"]
[PlyCount "125"]
[EventDate "2018.12.28"]
[EventType "swiss"]
[EventCountry "ENG"]
[SourceTitle "playchess.com"]
[Source "ChessBase"]
[SourceQuality "1"]
[TimeControl "40/6000+30:3000+30"]

1. e4 {[%emt 0:00:00]} c5 {[%emt 0:00:00]} 2. Nf3 {[%emt 0:00:00]} d6 {[%emt 0:00:00]} 3. d4 {[%emt 0:00:00]} cxd4 {[%emt 0:00:00]} 4. Nxd4 {[%emt 0:00:00]} Nf6 {[%emt 0:00:00]} 5. Nc3 {[%emt 0:00:00]} a6 {[%emt 0:00:00]} 6. h3 {[%emt 0:00:06]} e5 {[%emt 0:00:00]} 7. Nde2 {[%emt 0:00:13]} h5 {[%emt 0:00:19] B90: Sicilian Najdorf: Unusual White 6th moves, 6 Be3 Ng4 and 6 Be3 e5} (7... b5 8. Ng3 Nbd7 9. Bg5 h6 10. Be3 Bb7 11. Bd3 h5 12. Bg5 g6 13. O-O Be7 14. a3 h4 15. Nge2 Nc5 16. Bxf6 Bxf6 {1-0 (48) Dominguez Perez,L (2739)-Vachier Lagrave,M (2779) chess.com INT 2018}) 8. Bg5 {[%emt 0:01:47]} Be6 {[%emt 0:00:42]} 9. Bxf6 {[%emt 0:06:11]} Qxf6 {[%emt 0:00:18]} 10. Nd5 {[%emt 0:00:22]} Qd8 {[%emt 0:00:24]} 11. Nec3 {[%emt 0:00:40]} Nd7 {[%emt 0:02:10]} 12. Bc4 {[%emt 0:05:34]} Rc8 {[%emt 0:15:11]} 13. Bb3 {[%emt 0:00:44]} Nc5 {[%emt 0:03:18]} 14. O-O {[%emt 0:04:34]} g6 {[%emt 0:24:32]} 15. Qe2 $146 {[%emt 0:04:32]} ({Predecessor:} 15. f4) 15... Bh6 {[%emt 0:05:09]} 16. Bc4 {[%emt 0:06:14]} b5 {[%emt 0:13:21]} 17. Bd3 {[%emt 0:03:26]} O-O {[%emt 0:01:30]} 18. a4 {[%emt 0:08:34]} Bxd5 {[%emt 0:12:42]} 19. Nxd5 {[%emt 0:04:11]} bxa4 {[%emt 0:12:32]} 20. c3 {[%emt 0:08:40]} Ra8 {[%emt 0:06:26]} 21. Bc2 {[%emt 0:04:17]} Qh4 {[%emt 0:08:02]} 22. Kh2 {[%emt 0:14:09]} Rfb8 {[%emt 0:02:57]} 23. Bxa4 {[%emt 0:03:43]} Kg7 {[%emt 0:00:51]} 24. Rfe1 {[%emt 0:05:08]} f5 {[%emt 0:00:25]} 25. Bc6 {[%emt 0:04:03]} Ra7 {[%emt 0:00:35]} 26. exf5 {[%emt 0:00:57]} gxf5 {[%emt 0:00:29]} 27. Nb4 {[%emt 0:03:44]} a5 {[%emt 0:00:49]} 28. Bf3 {[%emt 0:01:32]} Kg6 {[%emt 0:00:46]} 29. g3 {[%emt 0:01:16]} Qd8 {[%emt 0:00:30]} 30. Nc6 {[%emt 0:03:13]} Qc7 {[%emt 0:00:28]} 31. Nxa7 {[%emt 0:01:08]} Qxa7 {[%emt 0:00:02]} 32. b4 {[%emt 0:01:15]} Nb3 {[%emt 0:00:44]} 33. Ra3 {[%emt 0:00:55]} a4 {[%emt 0:00:36]} 34. Bxh5+ {[%emt 0:03:04]} Kf6 {[%emt 0:00:21]} 35. Qa2 {[%emt 0:04:51]} Nc1 {[%emt 0:00:45]} 36. Rxc1 {[%emt 0:00:45]} Bxc1 {[%emt 0:00:07]} 37. Rxa4 {[%emt 0:00:07]} Qg7 {[%emt 0:00:23]} 38. Ra7 {[%emt 0:02:44]} Rb7 {[%emt 0:00:08]} 39. Rxb7 {[%emt 0:00:59]} Qxb7 {[%emt 0:00:02]} 40. Qg8 {[%emt 0:00:23]} Qg7 {[%emt 0:01:48]} 41. Qc4 {[%emt 0:53:42]} Qa7 {[%emt 0:01:42]} 42. Kg2 {[%emt 0:00:00]} Qa8+ {[%emt 0:04:55]} 43. Kg1 {[%emt 0:00:00]} Qb7 {[%emt 0:06:31]} 44. Qg8 {[%emt 0:00:00]} e4 {[%emt 0:14:51]} 45. Qg6+ {[%emt 0:00:00]} Ke5 {[%emt 0:00:23]} 46. g4 {[%emt 0:00:00]} Qd7 {[%emt 0:07:23]} 47. Qg8 {[%emt 0:00:00]} d5 {[%emt 0:10:58]} 48. Qh8+ {[%emt 0:00:00]} Kd6 {[%emt 0:00:36]} 49. Qd4 {[%emt 0:00:00]} Qc8 {[%emt 0:03:02]} (49... Qe7 {is a better defense.} 50. Qc5+ Ke6) 50. b5 {[%emt 0:00:00]} Bg5 $2 {[%emt 0:03:13]} (50... fxg4 51. Qf6+ Qe6 52. Qd8+ Kc5 53. Bxg4 Qg6) 51. gxf5 {[%emt 0:00:36]} Qc5 {[%emt 0:01:58]} 52. Qg7 {[%emt 0:02:25]} Bh4 $18 {[%emt 0:00:17]} 53. Qf8+ {[%emt 0:01:10]} Be7 {[%emt 0:00:03]} 54. Qh6+ {[%emt 0:01:03]} Ke5 {[%emt 0:01:00]} 55. Qe6+ {[%emt 0:01:49]} Kf4 {[%emt 0:00:06]} 56. f6 {[%emt 0:00:53]} Bf8 {[%emt 0:00:47]} 57. Qc6 {[%emt 0:01:07]} e3 {[%emt 0:00:40]} 58. Qxc5 {[%emt 0:01:12]} Bxc5 {[%emt 0:00:09]} 59. f7 {[%emt 0:00:53]} exf2+ {[%emt 0:00:59]} 60. Kf1 {[%emt 0:00:07]} Kg5 {[%emt 0:00:34]} 61. b6 {[%emt 0:00:35]} Kf6 {[%emt 0:00:30]} 62. b7 {[%emt 0:00:06]} Bd6 {[%emt 0:00:22]} 63. f8=Q+ {[%emt 0:00:36]} 1-0

[Event "94th Tradewise Hastings Congress"]
[Site "Hastings"]
[Date "2018.12.30"]
[Round "3"]
[White "Metcalfe, Charlie P"]
[Black "Heinsohn, Michael"]
[Result "0-1"]
[ECO "D91"]
[WhiteElo "1797"]
[BlackElo "1961"]
[Annotator "NA RC"]
[PlyCount "112"]
[EventDate "2018.12.28"]
[EventType "swiss"]
[EventCountry "ENG"]
[SourceTitle "playchess.com"]
[Source "ChessBase"]
[SourceQuality "1"]
[TimeControl "40/6000+30:3000+30"]

1. d4 {[%emt 0:00:00]} Nf6 {[%emt 0:00:00]} 2. c4 {[%emt 0:00:00]} g6 {[%emt 0:00:00]} 3. Nc3 {[%emt 0:00:00]} d5 {[%emt 0:00:00]} 4. Bg5 {[%emt 0:00:00]} Ne4 {[%emt 0:00:02]} 5. Bh4 {[%emt 0:00:00]} Nxc3 {[%emt 0:00:59]} 6. bxc3 {[%emt 0:00:00]} Bg7 {[%emt 0:01:07]} 7. e3 {[%emt 0:00:00]} c5 {[%emt 0:01:14]} 8. cxd5 {[%emt 0:00:00]} cxd4 {[%emt 0:01:43]} 9. cxd4 {[%emt 0:00:21]} Qxd5 {[%emt 0:00:54]} 10. Nf3 {[%emt 0:00:20]} Nc6 {[%emt 0:00:45]} 11. Be2 {[%emt 0:00:18]} O-O {[%emt 0:00:23]} 12. O-O {[%emt 0:00:44]} b6 {[%emt 0:18:29]} 13. Qa4 {[%emt 0:23:10]} Bd7 {[%emt 0:10:14]} 14. Qb5 {[%emt 0:15:23]} Qd6 {[%emt 0:17:13]} 15. Bg3 {[%emt 0:10:21]} Nxd4 {[%emt 0:11:03]} 16. Nxd4 {[%emt 0:02:05]} Bxb5 {[%emt 0:06:55]} 17. Bxd6 {[%emt 0:00:06]} Bxe2 {[%emt 0:01:16]} 18. Rfe1 {[%emt 0:07:51]} exd6 {[%emt 0:02:52]} 19. Rxe2 {[%emt 0:00:03]} Rac8 {[%emt 0:01:05]} 20. Rd2 {[%emt 0:01:02]} Rc4 {[%emt 0:01:38]} 21. Rad1 {[%emt 0:00:20]} Bxd4 {[%emt 0:00:23]} 22. Rxd4 {[%emt 0:00:25]} Rxd4 {[%emt 0:00:14]} 23. Rxd4 {[%emt 0:00:05]} Rc8 {[%emt 0:00:02]} 24. g3 {[%emt 0:02:18]} Rc2 {[%emt 0:01:24]} 25. a4 {[%emt 0:04:45]} Ra2 {[%emt 0:00:31]} 26. Kg2 {[%emt 0:01:44]} Kf8 {[%emt 0:00:03]} 27. g4 {[%emt 0:00:42]} Ke7 {[%emt 0:00:08]} 28. Kg3 {[%emt 0:01:44]} Rb2 {[%emt 0:00:39]} 29. Rd5 {[%emt 0:02:30]} Ke6 {[%emt 0:01:11]} 30. Rd4 {[%emt 0:01:33]} a5 {[%emt 0:01:03]} 31. Re4+ {[%emt 0:01:09]} Kd7 {[%emt 0:03:20]} 32. Rf4 {[%emt 0:00:35]} f6 {[%emt 0:03:49]} 33. Rxf6 {[%emt 0:01:00]} Ke7 {[%emt 0:00:07]} 34. Rf4 {[%emt 0:00:00]} Kd7 35. Rf6 {[%emt 0:01:00]} Ke7 {[%emt 0:01:00]} 36. g5 {[%emt 0:03:22]} Rb4 {[%emt 0:00:03]} 37. h4 {[%emt 0:00:50]} Rxa4 {[%emt 0:00:43]} 38. h5 {[%emt 0:00:01]} gxh5 {[%emt 0:01:58]} 39. Rh6 {[%emt 0:02:09]} Rg4+ {[%emt 0:00:05]} 40. Kh3 {[%emt 0:01:13]} Rxg5 {[%emt 0:00:10]} 41. Rxh7+ {[%emt 0:50:02]} Ke6 {[%emt 0:50:31]} 42. e4 {[%emt 0:02:23]} Re5 {[%emt 0:02:22]} 43. Rh6+ {[%emt 0:00:49]} Kd7 {[%emt 0:00:09]} 44. f3 {[%emt 0:00:50]} a4 {[%emt 0:00:06]} 45. Kg3 {[%emt 0:00:09]} a3 {[%emt 0:00:07]} 46. Rh7+ {[%emt 0:00:43]} Kc6 {[%emt 0:00:09]} 47. f4 {[%emt 0:00:32]} a2 {[%emt 0:02:14]} 48. fxe5 {[%emt 0:00:23]} a1=Q {[%emt 0:00:03]} 49. exd6 {[%emt 0:00:38]} Qe5+ {[%emt 0:00:43]} 50. Kf3 {[%emt 0:00:15]} Kxd6 {[%emt 0:00:15]} 51. Rf7 {[%emt 0:00:38]} h4 {[%emt 0:00:36]} 52. Rf5 {[%emt 0:00:29]} Qg3+ {[%emt 0:00:26]} 53. Ke2 {[%emt 0:00:01]} h3 {[%emt 0:00:10]} 54. Rd5+ {[%emt 0:00:38]} Kc6 {[%emt 0:00:13]} 55. Rd3 {[%emt 0:00:09]} Qxd3+ {[%emt 0:00:14]} 56. Kf2 {[%emt 0:00:10]} Qxe4 {[%emt 0:00:41]} 0-1